fUSD/lending_fUSD_20260426
["ID","MTS","AMOUNT","RATE_DAILY","PERIOD"]
[421155969,1777180244017,-151.0,0.0001,2]
[421155971,1777180244026,-500.0,0.0001,2]
[421155973,1777180244036,-151.0,0.0001,2]
[421155975,1777180244045,-500.0,0.0001,2]
[421155977,1777180244055,-151.0,0.0001,2]
[421155980,1777180244072,-500.0,0.0001,2]
[421155982,1777180244083,-151.0,0.0001,2]
[421155983,1777180244093,-500.0,0.0001,2]
[421155984,1777180244104,-151.0,0.0001,2]
[421155985,1777180244115,-151.0,0.0001,2]
[421155986,1777180244125,-500.0,0.0001,2]
[421155987,1777180244136,-151.0,0.0001,2]
[421155988,1777180244146,-151.0,0.0001,2]
[421155990,1777180244156,-500.0,0.0001,2]
[421155991,1777180244167,-151.0,0.0001,2]
[421155992,1777180244177,-151.0,0.0001,2]
[421155993,1777180244187,-500.0,0.0001,2]
[421155994,1777180244198,-151.0,0.0001,2]
[421155995,1777180244209,-500.0,0.0001,2]
[421155996,1777180244220,-151.0,0.0001,2]
[421155997,1777180244230,-151.0,0.0001,2]
[421155998,1777180244241,-151.0,0.0001,2]
[421155999,1777180244251,-151.0,0.0001,2]
[421156000,1777180244262,-151.0,0.0001,2]
[421156001,1777180244272,-151.0,0.0001,2]
[421156002,1777180244283,-500.0,0.0001,2]
[421156003,1777180244293,-151.0,0.0001,2]
[421156004,1777180244304,-500.0,0.0001,2]
[421156005,1777180244315,-500.0,0.0001,2]
[421156006,1777180244326,-151.0,0.0001,2]
[421156007,1777180244336,-500.0,0.0001,2]
[421156008,1777180244347,-151.0,0.0001,2]
[421156009,1777180244357,-500.0,0.0001,2]
[421156010,1777180244367,-151.0,0.0001,2]
[421156011,1777180244378,-500.0,0.0001,2]
[421156012,1777180244388,-151.0,0.0001,2]
[421156013,1777180244398,-500.0,0.0001,2]
[421156014,1777180244409,-151.0,0.0001,2]
[421156015,1777180244419,-500.0,0.0001,2]
[421156016,1777180244429,-500.0,0.0001,2]
[421156017,1777180244440,-500.0,0.0001,2]
[421156018,1777180244451,-500.0,0.0001,2]
[421156019,1777180244468,-151.0,0.0001,2]
[421156020,1777180244480,-151.0,0.0001,2]
[421156022,1777180244490,-500.0,0.0001,2]
[421156024,1777180244500,-151.0,0.0001,2]
[421156026,1777180244511,-500.0,0.0001,2]
[421156028,1777180244522,-151.0,0.0001,2]
[421156030,1777180244533,-150.0,0.00010005,2]
[421156032,1777180244543,-150.0,0.00010005,2]
[421156035,1777180244554,-150.0,0.00010008,2]
[421156037,1777180244565,-150.0,0.00010026,2]
[421156039,1777180244576,-150.0,0.00010044,2]
[421156041,1777180244587,-150.0,0.00010054,2]
[421156043,1777180244598,-150.0,0.00010062,2]
[421156046,1777180244611,-150.0,0.00010079,2]
[421156048,1777180244622,-150.0,0.00010097,2]
[421156050,1777180244632,-150.0,0.00010102,2]
[421156052,1777180244642,-150.0,0.00010102,2]
[421156054,1777180244653,-150.0,0.00010115,2]
[421156056,1777180244664,-150.0,0.00010133,2]
[421156058,1777180244675,-150.0,0.00010151,2]
[421156061,1777180244685,-150.0,0.00010151,2]
[421156063,1777180244696,-150.0,0.00010151,2]
[421156065,1777180244706,-150.0,0.00010151,2]
[421156067,1777180244717,-150.0,0.00010168,2]
[421156069,1777180244728,-150.0,0.00010186,2]
[421156071,1777180244738,-150.0,0.00010199,2]
[421156073,1777180244749,-150.0,0.00010199,2]
[421156076,1777180244760,-150.0,0.00010204,2]
[421156078,1777180244771,-150.0,0.00010222,2]
[421156080,1777180244782,-208.485106,0.00010227,2]
[421156082,1777180244792,-150.0,0.0001024,2]
[421156084,1777180244803,-150.0,0.00010248,2]
[421156086,1777180244814,-150.0,0.00010258,2]
[421156089,1777180244825,-150.0,0.00010275,2]
[421156091,1777180244835,-208.485107,0.00010279,2]
[421156093,1777180244851,-150.0,0.00010293,2]
[421156095,1777180244861,-150.0,0.00010296,2]
[421156098,1777180244872,-150.0,0.00010296,2]
[421156100,1777180244882,-150.0,0.00010311,2]
[421156102,1777180244893,-150.0,0.00010329,2]
[421156104,1777180244903,-150.0,0.00010345,2]
[421156106,1777180244913,-150.0,0.00010347,2]
[421156108,1777180244925,-150.0,0.00010364,2]
[421156111,1777180244936,-250.0,0.00010365,2]
[421156113,1777180244947,-150.0,0.00010382,2]
[421156115,1777180244957,-150.0,0.00010394,2]
[421156117,1777180244967,-150.0,0.00010394,2]
[421156119,1777180244978,-150.0,0.000104,2]
[421156121,1777180244989,-150.0,0.00010418,2]
[421156123,1777180245000,-150.0,0.00010436,2]
[421156126,1777180245011,-823.0,0.00010439,2]
[421156128,1777180245021,-3292.0,0.00010439,2]
[421156130,1777180245032,-150.0,0.00010442,2]
[421156132,1777180245044,-150.0,0.00010453,2]
[421156134,1777180245055,-150.0,0.00010471,2]
[421156136,1777180245066,-150.0,0.00010489,2]
[421156139,1777180245077,-150.0,0.00010491,2]
[421156141,1777180245088,-150.0,0.00010491,2]
[421156143,1777180245099,-150.0,0.00010507,2]
[421156145,1777180245111,-150.0,0.00010525,2]
[421156147,1777180245122,-150.0,0.00010539,2]
[421156149,1777180245133,-150.0,0.00010542,2]
[421156151,1777180245144,-150.0,0.0001056,2]
[421156153,1777180245156,-823.0,0.00010571,2]
[421156155,1777180245167,-212.0,0.00010573,2]
[421156157,1777180245177,-150.0,0.00010578,2]
[421156159,1777180245188,-150.0,0.00010588,2]
[421156162,1777180245200,-150.0,0.00010588,2]
[421156164,1777180245211,-150.0,0.00010596,2]
[421156166,1777180245223,-150.0,0.00010614,2]
[421156168,1777180245239,-150.0,0.00010632,2]
[421156170,1777180245250,-150.0,0.00010636,2]
[421156173,1777180245261,-150.0,0.00010649,2]
[421156175,1777180245272,-150.0,0.00010667,2]
[421156177,1777180245282,-500.0,0.00010673,2]
[421156179,1777180245293,-502.94277417,0.00010673,2]
[421156181,1777180245304,-502.86553041,0.00010673,2]
[421156183,1777180245315,-168.04956711,0.00010673,2]
[421156185,1777180245327,-500.0,0.00010673,2]
[421156186,1777180245338,-500.0,0.00010673,2]
[421156187,1777180245349,-500.0,0.00010673,2]
[421156188,1777180245359,-313.62196912,0.00010673,2]
[421156189,1777180245370,-365.62199556,0.00010673,2]
[421156190,1777180245381,-166.46158819,0.00010673,2]
[421156191,1777180245392,-150.00000001,0.00010685,2]
[421156192,1777180245403,-165.27848887,0.00010685,2]
[421156193,1777180245414,-150.0,0.00010685,2]
[421156194,1777180245425,-150.0,0.00010685,2]
[421156195,1777180245436,-150.0,0.00010685,2]
[421156196,1777180245447,-150.0,0.00010685,2]
[421156197,1777180245458,-202.11984563,0.00010685,2]
[421156198,1777180245470,-775926.59620901,0.000107,2]
[421156218,1777180246600,-151.0,0.00010248,2]
[421156219,1777180246611,-151.0,0.00010293,2]
[421156220,1777180246622,-68.45,0.00010345,2]
[421156221,1777180246704,-82.55,0.00010345,2]
[421156222,1777180246715,-151.0,0.00010588,2]
[421156223,1777180246726,-3557.08656865,0.000107,2]
[421156224,1777180246774,-5663.30637849,0.000107,2]
[421156226,1777180246912,-20950.10365151,0.000107,2]
[421156228,1777180246927,-1280.3099978,0.000107,2]
[421156230,1777180246941,-1204.81709429,0.000107,2]
[421156231,1777180246956,-540.74393397,0.000107,2]
[421156238,1777180564160,1675.0,0.000166,120]
[421156239,1777180672906,-1200.0,7.834e-05,2]
[421156240,1777180672945,-252.0,7.834e-05,2]
[421156241,1777180672985,-250.0,7.834e-05,2]
[421156242,1777180741916,300.0,7.834e-05,2]
[421156243,1777180801143,270.0,7.834e-05,2]
[421156244,1777180801181,300.0,7.834e-05,2]
[421156245,1777180801581,1200.0,7.834e-05,2]
[421156246,1777180861573,300.0,7.834e-05,2]
[421156247,1777180894249,237.26127448,7.827e-05,2]
[421156248,1777180916147,3218.1583,7.744e-05,2]
[421156249,1777180995558,770.59042552,7.744e-05,2]
[421156250,1777180995583,3138.09427448,7.744e-05,2]
[421156251,1777181001722,6861.91572552,7.744e-05,2]
[421156252,1777181006775,-5000.01,7.744e-05,2]
[421156253,1777181006879,-5000.01,7.744e-05,2]
[421156254,1777181006893,-5000.01,7.744e-05,2]
[421156255,1777181006937,-5000.01,7.744e-05,2]
[421156256,1777181007059,-5000.01,7.744e-05,2]
[421156257,1777181007176,-5000.01,7.744e-05,2]
[421156258,1777181007366,-5000.01,7.744e-05,2]
[421156259,1777181007575,-5000.01,7.744e-05,2]
[421156260,1777181007602,-5000.01,7.744e-05,2]
[421156261,1777181009414,-2201.33972552,7.744e-05,2]
[421156262,1777181009439,-597.33054896,7.744e-05,2]
[421156263,1777181080785,5000.01,7.744e-05,2]
[421156264,1777181080808,1786.3312,7.744e-05,2]
[421156265,1777181140861,-578.46247759,7.834e-05,2]
[421156266,1777181168491,4338.1002,7.744e-05,2]
[421156267,1777181216965,-257.0,7.834e-05,2]
[421156268,1777181284344,-3404.0,7.834e-05,2]
[421156269,1777181284430,-10000.01,7.834e-05,2]
[421156270,1777181284553,-10000.01,7.834e-05,2]
[421156271,1777181284652,-10000.01,7.834e-05,2]
[421156272,1777181284761,-10000.01,7.834e-05,2]
[421156273,1777181284869,-1082.94649969,7.834e-05,2]
[421156274,1777181284901,-280.65987745,7.835e-05,2]
[421156275,1777181284931,-500.0,7.842e-05,2]
[421156276,1777181284962,-198.028,7.842e-05,2]
[421156277,1777181284993,-155.669,7.843e-05,2]
[421156278,1777181285026,-871.0,7.843e-05,2]
[421156279,1777181285058,-150.0,7.843e-05,2]
[421156280,1777181285089,-565.51,7.844e-05,2]
[421156281,1777181285363,173.0,7.744e-05,3]
[421156282,1777181285477,250.0,7.834e-05,2]
[421156283,1777181294300,1000.0,7.844e-05,2]
[421156284,1777181302001,10000.01,7.735e-05,2]
[421156285,1777181302028,10000.01,7.735e-05,2]
[421156286,1777181302064,10000.01,7.735e-05,2]
[421156287,1777181302093,10000.01,7.735e-05,2]
[421156288,1777181302123,8474.4061,7.735e-05,2]
[421156299,1777181435276,500.0,7.745e-05,2]
[421156300,1777181437628,-152.0,7.905e-05,7]
[421156301,1777181437639,-152.0,7.96e-05,7]
[421156302,1777181437649,-152.0,7.96e-05,7]
[421156303,1777181437660,-152.0,7.96e-05,7]
[421156304,1777181437670,-152.0,7.968e-05,7]
[421156305,1777181437680,-152.0,7.968e-05,7]
[421156306,1777181437690,-152.0,7.968e-05,7]
[421156307,1777181437701,-152.0,7.968e-05,7]
[421156308,1777181437711,-565.51,8.118e-05,2]
[421156309,1777181437721,-344.752932,8.178e-05,2]
[421156310,1777181437732,-280.0,8.219e-05,2]
[421156311,1777181437742,-381.23,8.258e-05,2]
[421156312,1777181437752,-150.0,8.299e-05,2]
[421156313,1777181437763,-2121.08259616,8.3e-05,2]
[421156314,1777181437787,-1304.35115464,8.3e-05,2]
[421156315,1777181438592,-19690.98845006,8.3e-05,2]
[421156316,1777181438648,-75942.12081079,8.3e-05,2]
[421156317,1777181438659,-565.51,8.392e-05,2]
[421156318,1777181438669,-300.0,8.617e-05,2]
[421156319,1777181438678,-4796.72835465,8.617e-05,2]
[421156320,1777181438688,-250.0,8.617e-05,2]
[421156321,1777181438698,-2500.0,8.63e-05,2]
[421156322,1777181438708,-2500.0,8.63e-05,2]
[421156323,1777181438718,-2500.0,8.63e-05,2]
[421156324,1777181438728,-250.0,8.63e-05,2]
[421156325,1777181438738,-565.51,8.666e-05,2]
[421156326,1777181438748,-1410.61660132,8.696e-05,2]
[421156327,1777181438757,-2500.0,8.696e-05,2]
[421156328,1777181438767,-250.0,8.696e-05,2]
[421156329,1777181438777,-565.51,8.94e-05,2]
[421156330,1777181438788,-565.51,9.214e-05,2]
[421156331,1777181438798,-244.0,9.324e-05,2]
[421156332,1777181438810,-3059.93702905,9.616e-05,2]
[421156333,1777181438821,-197.48,9.805e-05,2]
[421156334,1777181438833,-3132.89,9.973e-05,2]
[421156336,1777181438842,-151.0,0.0001,2]
[421156338,1777181438852,-500.0,0.0001,2]
[421156339,1777181438862,-151.0,0.0001,2]
[421156340,1777181438872,-500.0,0.0001,2]
[421156341,1777181438882,-151.0,0.0001,2]
[421156342,1777181438892,-500.0,0.0001,2]
[421156343,1777181438902,-151.0,0.0001,2]
[421156344,1777181438912,-500.0,0.0001,2]
[421156346,1777181438922,-151.0,0.0001,2]
[421156348,1777181438931,-151.0,0.0001,2]
[421156350,1777181438945,-500.0,0.0001,2]
[421156352,1777181438954,-151.0,0.0001,2]
[421156354,1777181438964,-500.0,0.0001,2]
[421156356,1777181438974,-151.0,0.0001,2]
[421156358,1777181438983,-500.0,0.0001,2]
[421156360,1777181438993,-151.0,0.0001,2]
[421156362,1777181439003,-151.0,0.0001,2]
[421156364,1777181439013,-151.0,0.0001,2]
[421156367,1777181439023,-151.0,0.0001,2]
[421156369,1777181439032,-151.0,0.0001,2]
[421156371,1777181439042,-151.0,0.0001,2]
[421156373,1777181439051,-151.0,0.0001,2]
[421156375,1777181439061,-151.0,0.0001,2]
[421156376,1777181439071,-151.0,0.0001,2]
[421156378,1777181439081,-151.0,0.0001,2]
[421156380,1777181439091,-458.3251348,0.0001,2]
[421156382,1777181439101,-500.0,0.0001,2]
[421156384,1777181439111,-200.11697048,0.000102,2]
[421156386,1777181439121,-250.0,0.00010472,2]
[421156388,1777181439131,-2855.599,0.000106,2]
[421156390,1777181439142,-199.48708089,0.000106,2]
[421156392,1777181439151,-5000.0,0.000106,2]
[421156394,1777181439161,-181.90962244,0.000106,2]
[421156396,1777181439170,-291.55136015,0.000106,2]
[421156398,1777181439180,-260.9456764,0.000106,2]
[421156400,1777181439190,-339.98173037,0.000106,2]
[421156403,1777181439203,-4143.58015486,0.000106,2]
[421156405,1777181439212,-151.0,0.00010697,2]
[421156407,1777181439222,-151.0,0.00010697,2]
[421156409,1777181439231,-500.0,0.00010698,2]
[421156411,1777181439241,-500.0,0.00010698,2]
[421156412,1777181439251,-500.0,0.00010698,2]
[421156413,1777181439260,-500.0,0.00010698,2]
[421156414,1777181439270,-500.0,0.00010698,2]
[421156415,1777181439280,-500.0,0.00010698,2]
[421156416,1777181439289,-500.0,0.00010698,2]
[421156417,1777181439299,-500.0,0.00010698,2]
[421156418,1777181439308,-500.0,0.00010698,2]
[421156419,1777181439318,-500.0,0.00010698,2]
[421156420,1777181439327,-500.0,0.00010698,2]
[421156421,1777181439337,-500.0,0.00010698,2]
[421156422,1777181439347,-500.0,0.00010698,2]
[421156423,1777181439357,-464.00477996,0.00010698,2]
[421156424,1777181439366,-500.0,0.00010698,2]
[421156425,1777181439376,-500.0,0.00010698,2]
[421156426,1777181439397,-500.0,0.00010698,2]
[421156427,1777181439409,-500.0,0.00010698,2]
[421156428,1777181439419,-500.0,0.00010698,2]
[421156429,1777181439429,-500.0,0.00010698,2]
[421156430,1777181439439,-500.0,0.00010698,2]
[421156431,1777181439449,-500.0,0.00010698,2]
[421156432,1777181439459,-500.0,0.00010698,2]
[421156433,1777181439469,-500.0,0.00010698,2]
[421156434,1777181439479,-500.0,0.00010698,2]
[421156435,1777181439489,-500.0,0.00010698,2]
[421156436,1777181439500,-500.0,0.00010698,2]
[421156437,1777181439510,-500.0,0.00010698,2]
[421156438,1777181439521,-350.97526225,0.00010698,2]
[421156441,1777181439537,-149.02473775,0.00010698,2]
[421156442,1777181439547,-500.0,0.00010698,2]
[421156443,1777181439557,-500.0,0.00010698,2]
[421156444,1777181439567,-500.0,0.00010698,2]
[421156445,1777181439577,-500.0,0.00010698,2]
[421156446,1777181439587,-500.0,0.00010698,2]
[421156447,1777181439598,-500.0,0.00010698,2]
[421156448,1777181439608,-500.0,0.00010698,2]
[421156449,1777181439617,-500.0,0.00010698,2]
[421156450,1777181439628,-500.0,0.00010698,2]
[421156451,1777181439638,-344.78371299,0.00010698,2]
[421156452,1777181439651,-155.21628701,0.00010698,2]
[421156453,1777181439661,-500.0,0.00010698,2]
[421156454,1777181439672,-500.0,0.00010698,2]
[421156455,1777181439683,-500.0,0.00010698,2]
[421156456,1777181439693,-500.0,0.00010698,2]
[421156457,1777181439703,-500.0,0.00010698,2]
[421156458,1777181439714,-500.0,0.00010698,2]
[421156459,1777181439725,-500.0,0.00010698,2]
[421156460,1777181439736,-500.0,0.00010698,2]
[421156461,1777181439746,-500.0,0.00010698,2]
[421156462,1777181439756,-500.0,0.00010698,2]
[421156463,1777181439774,-500.0,0.00010698,2]
[421156464,1777181439785,-500.0,0.00010698,2]
[421156465,1777181439795,-500.0,0.00010698,2]
[421156466,1777181439806,-20.31158245,0.00010698,2]
[421156467,1777181439819,-479.68841755,0.00010698,2]
[421156468,1777181439829,-500.0,0.00010698,2]
[421156469,1777181439840,-500.0,0.00010698,2]
[421156470,1777181439851,-500.0,0.00010698,2]
[421156471,1777181439861,-500.0,0.00010698,2]
[421156472,1777181439871,-500.0,0.00010698,2]
[421156473,1777181439882,-500.0,0.00010698,2]
[421156474,1777181439892,-500.0,0.00010698,2]
[421156475,1777181439903,-500.0,0.00010698,2]
[421156476,1777181439913,-500.0,0.00010698,2]
[421156477,1777181439924,-200.0,0.00010698,2]
[421156478,1777181439934,-500.0,0.00010698,2]
[421156479,1777181439945,-500.0,0.00010698,2]
[421156480,1777181439956,-500.0,0.00010698,2]
[421156481,1777181439967,-500.0,0.00010698,2]
[421156482,1777181439977,-500.0,0.00010698,2]
[421156483,1777181439987,-500.0,0.00010698,2]
[421156484,1777181439997,-500.0,0.00010698,2]
[421156485,1777181440007,-500.0,0.00010698,2]
[421156486,1777181440018,-500.0,0.00010698,2]
[421156487,1777181440028,-500.0,0.00010698,2]
[421156488,1777181440039,-500.0,0.00010698,2]
[421156489,1777181440049,-500.0,0.00010698,2]
[421156490,1777181440059,-500.0,0.00010698,2]
[421156491,1777181440070,-500.0,0.00010698,2]
[421156492,1777181440080,-500.0,0.00010698,2]
[421156493,1777181440091,-500.0,0.00010698,2]
[421156494,1777181440102,-500.0,0.00010698,2]
[421156495,1777181440113,-1023.43749121,0.00010699,3]
[421156496,1777181440124,-17061.21545827,0.00010699,2]
[421156497,1777181440137,-48993.48432967,0.00010699,2]
[421156498,1777181440150,-829.67010334,0.00010699,2]
[421156499,1777181440168,-15974.28613262,0.00010699,2]
[421156500,1777181440179,-150.0,0.00010699,2]
[421156501,1777181440189,-250.0,0.00010699,2]
[421156502,1777181440200,-500.0,0.00010699,2]
[421156503,1777181440210,-500.0,0.00010699,2]
[421156504,1777181440221,-500.0,0.00010699,2]
[421156505,1777181440232,-521.94851114,0.00010699,2]
[421156506,1777181440242,-327.74999102,0.00010699,2]
[421156507,1777181440253,-500.0,0.00010699,2]
[421156508,1777181440263,-425.01832855,0.00010699,2]
[421156509,1777181440274,-500.0,0.00010699,2]
[421156510,1777181440285,-500.0,0.00010699,2]
[421156511,1777181440296,-129335.89082099,0.000107,2]
[421156519,1777181440838,-258.0,8.3e-05,2]
[421156520,1777181440850,-45145.7578864,0.000107,2]
[421156521,1777181441057,-1652.25324262,0.000107,2]
[421156532,1777181442583,-53063.54629767,0.000107,2]
[421156533,1777181442597,-305.81321456,0.000107,2]
[421156534,1777181442688,-989.29856,0.000107,2]
[421156535,1777181442742,-887.00102635,0.000107,2]
[421156536,1777181442796,-4694.93067227,0.000107,2]
[421156538,1777181445884,-7492.45944336,0.000107,2]
[421156539,1777181445897,-716.64808136,0.000107,2]
[421156540,1777181446359,-1164.25,0.000107,2]
[421156542,1777181447206,-13004.66814329,0.000107,2]
[421156543,1777181462388,5000.01,7.745e-05,2]
[421156544,1777181462415,5000.01,7.745e-05,2]
[421156545,1777181462440,5000.01,7.745e-05,2]
[421156546,1777181462466,5000.01,7.745e-05,2]
[421156547,1777181462490,5000.01,7.745e-05,2]
[421156548,1777181462515,5000.01,7.745e-05,2]
[421156549,1777181462540,5000.01,7.745e-05,2]
[421156550,1777181462564,5000.01,7.745e-05,2]
[421156551,1777181466090,-3375.5886,7.745e-05,2]
[421156552,1777181466173,-5000.01,7.745e-05,2]
[421156553,1777181466267,-5000.01,7.745e-05,2]
[421156554,1777181466379,-5000.01,7.745e-05,2]
[421156555,1777181470041,-5000.01,7.745e-05,2]
[421156556,1777181470056,-5000.01,7.745e-05,2]
[421156557,1777181470074,-5000.01,7.745e-05,2]
[421156558,1777181470092,-5000.01,7.745e-05,2]
[421156559,1777181470107,-5000.01,7.745e-05,2]
[421156560,1777181470121,-5000.01,7.745e-05,2]
[421156561,1777181470135,-5000.01,7.745e-05,2]
[421156562,1777181521449,300.0,7.744e-05,2]
[421156563,1777181558535,500.0,7.744e-05,2]
[421156564,1777181558633,500.0,7.744e-05,2]
[421156565,1777181559664,500.0,7.744e-05,2]
[421156566,1777181559715,500.0,7.744e-05,2]
[421156567,1777181559768,500.0,7.744e-05,2]
[421156568,1777181559814,500.0,7.744e-05,2]
[421156569,1777181559866,500.0,7.744e-05,2]
[421156570,1777181559905,500.0,7.744e-05,2]
[421156571,1777181559946,500.0,7.744e-05,2]
[421156572,1777181559988,500.0,7.744e-05,2]
[421156573,1777181560033,500.0,7.744e-05,2]
[421156574,1777181560076,500.0,7.744e-05,2]
[421156575,1777181560116,500.0,7.744e-05,2]
[421156576,1777181560156,500.0,7.744e-05,2]
[421156577,1777181560192,316.400478,7.744e-05,2]
[421156578,1777181560252,500.0,7.744e-05,2]
[421156579,1777181560294,500.0,7.744e-05,2]
[421156580,1777181580072,499.99999999,7.744e-05,2]
[421156581,1777181581566,300.0,7.744e-05,2]
[421156582,1777181581719,150.0,7.744e-05,2]
[421156583,1777181588137,171.0,7.744e-05,3]
[421156584,1777181589221,262.60952201,7.744e-05,3]
[421156585,1777181589244,203.39047799,7.744e-05,3]
[421156586,1777181595356,154.0,7.744e-05,3]
[421156587,1777181603312,500.0,7.645e-05,2]
[421156588,1777181636048,3795.09126293,7.744e-05,2]
[421156589,1777181641042,500.0,7.744e-05,2]
[421156590,1777181648516,154.0,7.744e-05,3]
[421156591,1777181659311,500.0,7.744e-05,2]
[421156592,1777181674053,500.0,7.744e-05,2]
[421156593,1777181685551,500.0,7.744e-05,2]
[421156594,1777181697023,500.0,7.744e-05,2]
[421156595,1777181701123,1200.0,7.744e-05,2]
[421156596,1777181701330,300.0,7.744e-05,2]
[421156597,1777181708497,500.0,7.744e-05,2]
[421156598,1777181711642,443.0,7.744e-05,3]
[421156599,1777181711974,160.0,7.744e-05,3]
[421156600,1777181718489,90.52825908,7.744e-05,3]
[421156601,1777181718522,63.47174092,7.744e-05,3]
[421156602,1777181720091,500.0,7.744e-05,2]
[421156603,1777181738675,500.0,7.744e-05,2]
[421156604,1777181738711,500.0,7.744e-05,2]
[421156605,1777181749949,500.0,7.645e-05,2]
[421156606,1777181765619,421.0,7.744e-05,3]
[421156607,1777181772599,154.0,7.744e-05,3]
[421156608,1777181823450,308.09394173,7.744e-05,2]
[421156609,1777181825667,400.0,7.744e-05,3]
[421156610,1777181831471,155.0,7.744e-05,3]
[421156611,1777181844474,500.0,7.744e-05,2]
[421156612,1777181844517,500.0,7.744e-05,2]
[421156613,1777181844558,500.0,7.744e-05,2]
[421156614,1777181844617,500.0,7.744e-05,2]
[421156615,1777181844663,500.0,7.744e-05,2]
[421156616,1777181844703,500.0,7.744e-05,2]
[421156617,1777181844753,500.0,7.744e-05,2]
[421156618,1777181844793,500.0,7.744e-05,2]
[421156619,1777181844846,500.0,7.744e-05,2]
[421156620,1777181844890,500.0,7.744e-05,2]
[421156621,1777181844929,500.0,7.744e-05,2]
[421156622,1777181844975,500.0,7.744e-05,2]
[421156623,1777181845014,498.44431735,7.744e-05,2]
[421156624,1777181845043,1.55568265,7.744e-05,2]
[421156625,1777181845085,261.7195758,7.744e-05,2]
[421156626,1777181845138,500.0,7.744e-05,2]
[421156627,1777181845207,500.0,7.744e-05,2]
[421156628,1777181845304,500.0,7.744e-05,2]
[421156629,1777181845345,500.0,7.744e-05,2]
[421156630,1777181845386,500.0,7.744e-05,2]
[421156631,1777181845426,500.0,7.744e-05,2]
[421156632,1777181845469,500.0,7.744e-05,2]
[421156633,1777181845518,500.0,7.744e-05,2]
[421156634,1777181845571,500.0,7.744e-05,2]
[421156635,1777181845619,500.0,7.744e-05,2]
[421156636,1777181845663,500.0,7.744e-05,2]
[421156637,1777181886868,380.0,7.744e-05,3]
[421156638,1777181908889,211.4334,7.645e-05,2]
[421156639,1777181947095,361.0,7.744e-05,3]
[421156640,1777181956814,500.0,7.744e-05,2]
[421156641,1777181956854,500.0,7.744e-05,2]
[421156642,1777181956919,500.0,7.744e-05,2]
[421156643,1777181956962,500.0,7.744e-05,2]
[421156644,1777181957007,500.0,7.744e-05,2]
[421156645,1777181957052,500.0,7.744e-05,2]
[421156646,1777181957090,284.30134155,7.744e-05,2]
[421156647,1777181957121,215.69865845,7.744e-05,2]
[421156648,1777181957159,500.0,7.744e-05,2]
[421156649,1777181957214,500.0,7.744e-05,2]
[421156650,1777181957252,500.0,7.744e-05,2]
[421156651,1777181957294,500.0,7.744e-05,2]
[421156652,1777181957334,500.0,7.744e-05,2]
[421156653,1777181957370,500.0,7.744e-05,2]
[421156654,1777181957412,500.0,7.744e-05,2]
[421156655,1777181957454,500.0,7.744e-05,2]
[421156656,1777181957490,457.81200538,7.744e-05,2]
[421156657,1777181974556,500.0,7.744e-05,2]
[421156658,1777181974604,500.0,7.744e-05,2]
[421156659,1777181991865,500.0,7.744e-05,2]